lending/lending_fUSD_20241229
["ID","MTS","AMOUNT","RATE_DAILY","PERIOD"]
[346985192,1735452636581,-537.227464,0.00012978,2]
[346985193,1735452636590,-500.0,0.00012978,2]
[346985194,1735452636600,-537.227464,0.00012978,2]
[346985195,1735452636612,-505.82072969,0.00012978,2]
[346985196,1735452636621,-249.42064724,0.00012978,2]
[346985197,1735452636630,-500.0,0.00012978,2]
[346985198,1735452636639,-500.0,0.00012978,2]
[346985199,1735452636648,-500.0,0.00012978,2]
[346985200,1735452636657,-500.0,0.00012978,2]
[346985201,1735452636667,-500.0,0.00012978,2]
[346985202,1735452636676,-500.0,0.00012978,2]
[346985203,1735452636689,-1297.78,0.00012978,2]
[346985204,1735452636699,-1878.72,0.00012978,2]
[346985205,1735452636708,-500.0,0.00012978,2]
[346985206,1735452636717,-502.82529769,0.00012978,2]
[346985207,1735452636726,-500.0,0.00012978,2]
[346985208,1735452636735,-500.0,0.00012978,2]
[346985209,1735452636744,-500.0,0.00012978,2]
[346985210,1735452636753,-500.0,0.00012978,2]
[346985211,1735452636762,-500.0,0.00012978,2]
[346985212,1735452636771,-500.0,0.00012978,2]
[346985213,1735452636779,-500.0,0.00012978,2]
[346985214,1735452636788,-151.0,0.00012978,2]
[346985215,1735452636797,-154.636512,0.00012978,2]
[346985216,1735452636806,-556.7,0.00012978,2]
[346985217,1735452636815,-1249.46,0.00012978,2]
[346985218,1735452636825,-500.0,0.00012978,2]
[346985219,1735452636834,-503.26517428,0.00012978,2]
[346985220,1735452636842,-500.0,0.00012978,2]
[346985221,1735452636851,-500.0,0.00012978,2]
[346985222,1735452636861,-647.68,0.00012978,2]
[346985223,1735452636869,-768.92,0.00012978,2]
[346985224,1735452636878,-500.0,0.00012978,2]
[346985225,1735452636888,-500.0,0.00012978,2]
[346985226,1735452636897,-5547.56,0.00012978,2]
[346985227,1735452636906,-500.0,0.00012978,2]
[346985228,1735452636915,-438.46440673,0.00012978,2]
[346985229,1735452636924,-500.0,0.00012978,2]
[346985230,1735452636933,-506.1132737,0.00012978,2]
[346985231,1735452636942,-500.0,0.00012978,2]
[346985232,1735452636951,-538.12043135,0.00012978,2]
[346985233,1735452636961,-318.43283197,0.00012978,2]
[346985234,1735452636970,-500.0,0.00012978,2]
[346985235,1735452636979,-500.0,0.00012978,2]
[346985236,1735452636988,-5248.62,0.00012978,2]
[346985237,1735452636997,-500.0,0.00012978,2]
[346985238,1735452637006,-500.0,0.00012978,2]
[346985239,1735452637015,-500.0,0.00012978,2]
[346985240,1735452637024,-500.0,0.00012978,2]
[346985241,1735452637033,-503.49905921,0.00012978,2]
[346985242,1735452637041,-503.17268274,0.00012978,2]
[346985243,1735452637051,-666.51,0.00012978,2]
[346985244,1735452637060,-500.0,0.00012978,2]
[346985245,1735452637069,-500.0,0.00012978,2]
[346985246,1735452637078,-618.54,0.00012978,2]
[346985247,1735452637087,-496.2246274,0.00012978,2]
[346985248,1735452637097,-505.20000295,0.00012978,2]
[346985249,1735452637106,-500.0,0.00012978,2]
[346985250,1735452637116,-501.89405936,0.00012978,2]
[346985251,1735452637125,-515.9910238,0.00012978,2]
[346985252,1735452637135,-500.0,0.00012978,2]
[346985253,1735452637145,-500.0,0.00012978,2]
[346985254,1735452637154,-500.0,0.00012978,2]
[346985255,1735452637164,-227.03005217,0.00012978,2]
[346985256,1735452637173,-503.23364648,0.00012978,2]
[346985257,1735452637182,-504.87927106,0.00012978,2]
[346985258,1735452637192,-505.12433271,0.00012978,2]
[346985259,1735452637201,-500.0,0.00012978,2]
[346985260,1735452637210,-500.0,0.00012978,2]
[346985261,1735452637220,-500.0,0.00012978,2]
[346985262,1735452637229,-504.43860748,0.00012978,2]
[346985263,1735452637239,-500.0,0.00012978,2]
[346985264,1735452637248,-141.34232592,0.00012978,2]
[346985274,1735452637978,-819.95767408,0.00012978,2]
[346985276,1735452637988,-500.0,0.00012978,2]
[346985277,1735452637998,-559.05347662,0.00012978,2]
[346985278,1735452638008,-500.0,0.00012978,2]
[346985279,1735452638018,-500.0,0.00012978,2]
[346985280,1735452638029,-500.0,0.00012978,2]
[346985281,1735452638038,-634.4882115,0.00012978,2]
[346985282,1735452638047,-500.0,0.00012978,2]
[346985283,1735452638057,-500.0,0.00012978,2]
[346985284,1735452638067,-324.68799621,0.00012978,2]
[346985285,1735452638076,-501.85398706,0.00012978,2]
[346985286,1735452638084,-436.79501018,0.00012978,2]
[346985287,1735452638094,-500.0,0.00012978,2]
[346985288,1735452638104,-643.66153669,0.00012978,2]
[346985289,1735452638114,-500.0,0.00012978,2]
[346985290,1735452638124,-500.0,0.00012978,2]
[346985291,1735452638134,-500.0,0.00012978,2]
[346985292,1735452638143,-170.09195319,0.00012978,2]
[346985293,1735452638155,-329.90804681,0.00012978,2]
[346985294,1735452638164,-500.0,0.00012978,2]
[346985295,1735452638174,-2371.47,0.00012978,2]
[346985296,1735452638184,-500.0,0.00012978,2]
[346985297,1735452638193,-500.0,0.00012978,2]
[346985298,1735452638202,-500.0,0.00012978,2]
[346985299,1735452638212,-500.0,0.00012978,2]
[346985300,1735452638222,-537.68,0.00012978,2]
[346985301,1735452638233,-500.0,0.00012978,2]
[346985302,1735452638242,-500.0,0.00012978,2]
[346985303,1735452638252,-515.06,0.00012978,2]
[346985304,1735452638262,-512.11793796,0.00012978,2]
[346985305,1735452638271,-500.0,0.00012978,2]
[346985306,1735452638280,-567.03227557,0.00012978,2]
[346985307,1735452638289,-500.0,0.00012978,2]
[346985308,1735452638299,-500.0,0.00012978,2]
[346985309,1735452638308,-500.0,0.00012978,2]
[346985310,1735452638318,-500.0,0.00012978,2]
[346985311,1735452638328,-1265.13,0.00012978,2]
[346985312,1735452638337,-500.0,0.00012978,2]
[346985313,1735452638347,-500.0,0.00012978,2]
[346985314,1735452638356,-566.81276144,0.00012978,2]
[346985316,1735452638366,-500.0,0.00012978,2]
[346985318,1735452638375,-500.0,0.00012978,2]
[346985320,1735452638384,-512.19327696,0.00012978,2]
[346985322,1735452638394,-500.0,0.00012978,2]
[346985323,1735452638403,-500.0,0.00012978,2]
[346985324,1735452638412,-500.0,0.00012978,2]
[346985325,1735452638421,-500.0,0.00012978,2]
[346985326,1735452638430,-501.38825293,0.00012978,2]
[346985327,1735452638440,-500.0,0.00012978,2]
[346985328,1735452638449,-500.0,0.00012978,2]
[346985329,1735452638458,-502.4396002,0.00012978,2]
[346985330,1735452638467,-683.77,0.00012978,2]
[346985331,1735452638476,-683.77,0.00012978,2]
[346985332,1735452638486,-301.20672424,0.00012978,2]
[346985333,1735452638495,-500.0,0.00012978,2]
[346985334,1735452638504,-93.15864765,0.00012978,2]
[346985335,1735452638516,-279.21135235,0.00012978,2]
[346985336,1735452638525,-500.0,0.00012979,2]
[346985337,1735452638534,-169.45229542,0.00012979,2]
[346985339,1735452638544,-500.0,0.00012979,2]
[346985341,1735452638553,-500.0,0.00012979,2]
[346985343,1735452638563,-500.0,0.00012979,2]
[346985344,1735452638572,-500.0,0.00012979,2]
[346985345,1735452638582,-500.93642395,0.00012979,2]
[346985346,1735452638591,-500.37314541,0.00012979,2]
[346985347,1735452638600,-500.0,0.00012979,2]
[346985348,1735452638612,-501.03463622,0.00012979,2]
[346985349,1735452638622,-500.0,0.00012979,2]
[346985350,1735452638631,-504.02111132,0.00012979,2]
[346985351,1735452638640,-500.84632439,0.00012979,2]
[346985352,1735452638649,-500.0,0.00012979,2]
[346985353,1735452638659,-500.0,0.00012979,2]
[346985354,1735452638668,-500.0,0.00012979,2]
[346985355,1735452638678,-500.0,0.00012979,2]
[346985356,1735452638688,-500.0,0.00012979,2]
[346985357,1735452638698,-500.0,0.00012979,2]
[346985358,1735452638707,-500.0,0.00012979,2]
[346985359,1735452638717,-342.43560241,0.00012979,2]
[346985360,1735452638726,-500.0,0.00012979,2]
[346985361,1735452638735,-500.0,0.00012979,2]
[346985362,1735452638745,-505.15718718,0.00012979,2]
[346985363,1735452638754,-507.31716252,0.00012979,2]
[346985364,1735452638763,-500.0,0.00012979,2]
[346985365,1735452638773,-510.8074871,0.00012979,2]
[346985366,1735452638783,-500.0,0.00012979,2]
[346985367,1735452638791,-500.0,0.00012979,2]
[346985368,1735452638801,-501.44644975,0.00012979,2]
[346985369,1735452638810,-501.87168983,0.00012979,2]
[346985370,1735452638819,-503.40617288,0.00012979,2]
[346985371,1735452638829,-500.0,0.00012979,2]
[346985372,1735452638837,-502.55752524,0.00012979,2]
[346985373,1735452638846,-500.0,0.00012979,2]
[346985374,1735452638856,-500.0,0.00012979,2]
[346985375,1735452638865,-500.0,0.00012979,2]
[346985376,1735452638874,-501.34346387,0.00012979,2]
[346985377,1735452638883,-500.0,0.00012979,2]
[346985378,1735452638893,-500.0,0.00012979,2]
[346985379,1735452638902,-507.39654026,0.00012979,2]
[346985380,1735452638912,-500.0,0.00012979,2]
[346985381,1735452638921,-509.38037028,0.00012979,2]
[346985382,1735452638931,-500.0,0.00012979,2]
[346985383,1735452638940,-500.0,0.00012979,2]
[346985384,1735452638950,-500.0,0.00012979,2]
[346985385,1735452638959,-328.68346713,0.00012979,2]
[346985390,1735452640100,-289.15000193,0.00012977,2]
[346985391,1735452640161,-610.61999807,0.00012977,2]
[346985392,1735452640172,-728.78,0.00012978,2]
[346985393,1735452640182,-366.15827513,0.00012978,2]
[346985394,1735452640359,-219.85812838,0.00012978,2]
[346985395,1735452640369,-510.57532014,0.00012978,2]
[346985396,1735452640378,-171.31653287,0.00012979,2]
[346985397,1735452640387,-500.0,0.00012979,2]
[346985398,1735452640397,-500.0,0.00012979,2]
[346985399,1735452640407,-500.0,0.00012979,2]
[346985400,1735452640416,-500.0,0.00012979,2]
[346985401,1735452640425,-500.0,0.00012979,2]
[346985402,1735452640434,-500.0,0.00012979,2]
[346985403,1735452640443,-502.81187762,0.00012979,2]
[346985404,1735452640452,-503.94358895,0.00012979,2]
[346985405,1735452640462,-500.0,0.00012979,2]
[346985406,1735452640472,-500.0,0.00012979,2]
[346985407,1735452640483,-507.74383215,0.00012979,2]
[346985408,1735452640493,-11.08054338,0.00012979,2]
[346985409,1735452640785,-488.91945662,0.00012979,2]
[346985410,1735452640794,-500.0,0.00012979,2]
[346985411,1735452640804,-502.98741983,0.00012979,2]
[346985412,1735452640813,-500.0,0.00012979,2]
[346985413,1735452640822,-500.0,0.00012979,2]
[346985414,1735452640831,-500.0,0.00012979,2]
[346985415,1735452640841,-500.0,0.00012979,2]
[346985416,1735452640850,-510.41905634,0.00012979,2]
[346985417,1735452640859,-500.0,0.00012979,2]
[346985418,1735452640868,-500.0,0.00012979,2]
[346985419,1735452640877,-500.0,0.00012979,2]
[346985420,1735452640887,-500.0,0.00012979,2]
[346985421,1735452640896,-500.0,0.00012979,2]
[346985422,1735452640904,-500.0,0.00012979,2]
[346985423,1735452640913,-500.0,0.00012979,2]
[346985424,1735452640922,-500.0,0.00012979,2]
[346985425,1735452640932,-500.0,0.00012979,2]
[346985426,1735452640941,-500.0,0.00012979,2]
[346985427,1735452640950,-614.49343895,0.00012979,2]
[346985428,1735452640959,-500.0,0.00012979,2]
[346985429,1735452640968,-500.0,0.00012979,2]
[346985430,1735452640977,-500.0,0.00012979,2]
[346985431,1735452640987,-500.0,0.00012979,2]
[346985432,1735452640996,-500.0,0.00012979,2]
[346985433,1735452641005,-500.0,0.00012979,2]
[346985434,1735452641015,-500.0,0.00012979,2]
[346985435,1735452641024,-500.0,0.00012979,2]
[346985436,1735452641033,-501.89423584,0.00012979,2]
[346985437,1735452641043,-500.0,0.00012979,2]
[346985438,1735452641053,-502.11031504,0.00012979,2]
[346985439,1735452641062,-502.23395959,0.00012979,2]
[346985440,1735452641071,-500.0,0.00012979,2]
[346985441,1735452641081,-510.02440097,0.00012979,2]
[346985442,1735452641090,-500.0,0.00012979,2]
[346985443,1735452641100,-502.93782713,0.00012979,2]
[346985444,1735452641109,-501.76742756,0.00012979,2]
[346985445,1735452641118,-500.0,0.00012979,2]
[346985446,1735452641128,-500.0,0.00012979,2]
[346985447,1735452641137,-500.0,0.00012979,2]
[346985448,1735452641146,-505.73047332,0.00012979,2]
[346985449,1735452641155,-596.13286001,0.00012979,2]
[346985450,1735452641165,-501.63257677,0.00012979,2]
[346985451,1735452641175,-504.52912762,0.00012979,2]
[346985452,1735452641185,-45.43917636,0.00012979,2]
[346985453,1735452641219,-299.8200351,0.00012979,2]
[346985481,1735452643725,-500.0,0.00012977,2]
[346985482,1735452643734,-465.02382423,0.00012978,2]
[346985485,1735452643959,-34.97617577,0.00012978,2]
[346985486,1735452643970,-154.74078854,0.00012979,2]
[346985487,1735452643981,-255.31910584,0.00012979,2]
[346985632,1735452646330,-292.80640999,0.00012977,2]
[346985676,1735453832298,-539.94,9.87e-05,2]
[346985677,1735453832308,-238.88,0.00010137,2]
[346985678,1735453832318,-481.37,0.00011809,2]
[346985679,1735453832327,-250.0,0.00011813,2]
[346985680,1735453832336,-489.81,0.00012134,2]
[346985761,1735453838208,-50.13,0.00012134,2]
[346985762,1735453838220,-152.43,0.00012151,2]
[346985763,1735453838231,-152.43,0.00012159,2]
[346985764,1735453838243,-152.43,0.00012166,2]
[346985765,1735453838255,-152.43,0.00012174,2]
[346985766,1735453838266,-152.43,0.00012182,2]
[346985767,1735453838278,-152.43,0.00012189,2]
[346985768,1735453838290,-152.43,0.00012197,2]
[346985769,1735453838301,-152.43,0.00012204,2]
[346985770,1735453838313,-152.43,0.00012212,2]
[346985771,1735453838324,-300.0,0.00012223,2]
[346985772,1735453838335,-23900.0,0.00012224,2]
[346985773,1735453838347,-366.409,0.0001235,2]
[346985774,1735453838367,-428.83450843,0.00012782,2]
[346985775,1735453838386,-428.83450839,0.00012795,2]
[346985776,1735453838401,-428.83450839,0.00012808,2]
[346985777,1735453838415,-428.83450839,0.00012821,2]
[346985778,1735453838430,-428.83450839,0.00012834,2]
[346985779,1735453838446,-428.83450839,0.00012848,2]
[346985780,1735453838459,-428.83450839,0.00012861,2]
[346985781,1735453838472,-428.83450839,0.00012874,2]
[346985782,1735453838485,-39420.21725125,0.00012879,2]
[346985783,1735453838503,-1150.0429755,0.00012879,2]
[346985977,1735453840433,-2018.33213186,0.00012879,2]
[346985979,1735453840445,-5077.65534139,0.00012879,2]
[346985981,1735453840454,-1901.94465861,0.0001288,2]
[346985983,1735453840466,-500.0,0.0001288,2]
[346985987,1735453840487,-395.92311807,0.0001288,2]
[346985989,1735453840501,-621.21444976,0.0001288,2]
[346985991,1735453840512,-941.68,0.0001288,2]
[346985996,1735453840547,-671.11125443,0.0001288,2]
[346985998,1735453840559,-8486.18655485,0.0001288,2]
[346986000,1735453840571,-10968.87784998,0.0001288,2]
[346986005,1735453840601,-355.72425126,0.0001288,2]
[346986305,1735453843521,-12538.32830649,0.0001288,2]
[346986307,1735453843532,-9444.55953,0.0001288,2]
[346986309,1735453843544,-750.2327521,0.0001288,2]
[346986817,1735454051402,3000.0,0.00024674,120]
[346986828,1735454296534,-292.87,0.00010137,2]
[346986829,1735454296556,-3629.96,0.00011736,2]
[346986830,1735454296579,-250.0,0.00011805,2]
[346986831,1735454296603,-250.0,0.00011859,2]
[346986832,1735454296629,-321.36,0.00011886,2]
[346986833,1735454296650,-4418.08,0.00011901,2]
[346986834,1735454296672,-478.34,0.00011901,2]
[346986835,1735454296693,-287.37,0.00011939,2]
[346986836,1735454296716,-1000.0,0.00011971,2]
[346986837,1735454296737,-450.0,0.00012,2]
[346986838,1735454296759,-150.0,0.0001206,2]
[346986839,1735454296781,-23900.0,0.00012101,2]
[346986840,1735454296804,-150.0,0.00012239,2]
[346986841,1735454296826,-150.0,0.00012349,2]
[346986842,1735454296849,-369.18,0.0001235,2]
[346986843,1735454296871,-150.0,0.00012387,2]
[346986844,1735454296892,-11839.0,0.00012718,2]
[346986845,1735454296918,-404.14745423,0.00012795,2]
[346986846,1735454296943,-171.53380338,0.00012875,2]
[346986847,1735454296966,-162.68218529,0.00012875,2]
[346986848,1735454296988,-1358.06595423,0.00012875,2]
[346986849,1735454297011,-238.18300526,0.00012876,2]
[346986850,1735454297034,-1358.06595421,0.00012878,2]
[346986851,1735454297057,-1724.21053,0.0001288,2]
[346986852,1735454297079,-25899.21727445,0.0001288,2]
[346986853,1735454297101,-1358.06595421,0.00012881,2]
[346986854,1735454297122,-171.53380335,0.00012881,2]
[346986855,1735454297143,-1358.06595421,0.00012883,2]
[346986856,1735454297164,-1358.06595421,0.00012886,2]
[346986857,1735454297186,-171.53380335,0.00012888,2]
[346986858,1735454297207,-1358.06595421,0.00012889,2]
[346986859,1735454297229,-1358.06595421,0.00012892,2]
[346986860,1735454297252,-150.0,0.00012893,2]
[346986861,1735454297274,-171.53380335,0.00012894,2]
[346986862,1735454297295,-1358.06595421,0.00012894,2]
[346986863,1735454297317,-1358.06595421,0.00012897,2]
[346986864,1735454297343,-1316.94576578,0.000129,2]
[346986865,1735454297364,-171.53380335,0.000129,2]
[346986866,1735454297386,-1358.06595421,0.000129,2]
[346986867,1735454297408,-500.0,0.00012974,2]
[346986868,1735454297432,-3446.0,0.00012974,2]
[346986869,1735454297455,-530.11,0.00012974,2]
[346986870,1735454297477,-1691.18,0.00012974,2]
[346986871,1735454297500,-5120.98,0.00012974,2]
[346986872,1735454297524,-2137.5,0.00012974,2]
[346986873,1735454297550,-5255.28,0.00012974,2]
[346986874,1735454297572,-1698.05,0.00012974,2]
[346986875,1735454297596,-1151.17,0.00012974,2]
[346986876,1735454297624,-3655.72,0.00012974,2]
[346986877,1735454297646,-4247.85921054,0.00012975,2]
[346986878,1735454297672,-400822.90706789,0.00012975,2]
[346986879,1735454297697,-882.34,0.00012975,2]
[346986880,1735454297720,-500.0,0.00012975,2]
[346986881,1735454297743,-1731.84,0.00012975,2]
[346986882,1735454297765,-539.44,0.00012975,2]
[346986883,1735454297792,-500.0,0.00012975,2]
[346986884,1735454297814,-500.0,0.00012975,2]
[346986885,1735454297836,-500.0,0.00012975,2]
[346986886,1735454297858,-500.0,0.00012975,2]
[346986887,1735454297880,-500.0,0.00012975,2]
[346986888,1735454297903,-489.31811637,0.00012975,2]
[346986889,1735454297924,-526.15,0.00012975,2]
[346986890,1735454297946,-512.19,0.00012975,2]
[346986891,1735454297969,-500.0,0.00012975,2]
[346986892,1735454297990,-500.0,0.00012975,2]
[346986893,1735454298015,-625.99749933,0.00012975,2]
[346986894,1735454298037,-500.0,0.00012975,2]
[346986895,1735454298060,-500.0,0.00012975,2]
[346986896,1735454298081,-291.09184009,0.00012975,2]
[346986897,1735454298104,-500.0,0.00012975,2]
[346986898,1735454298139,-500.0,0.00012975,2]
[346986899,1735454298163,-1268.1,0.00012975,2]
[346986900,1735454298187,-527.26,0.00012975,2]
[346986901,1735454298209,-500.0,0.00012975,2]
[346986902,1735454298230,-500.0,0.00012975,2]
[346986903,1735454298253,-500.0,0.00012975,2]
[346986904,1735454298276,-1133.91,0.00012975,2]
[346986905,1735454298298,-500.0,0.00012975,2]
[346986906,1735454298321,-500.0,0.00012975,2]
[346986907,1735454298343,-500.0,0.00012975,2]
[346986908,1735454298365,-500.0,0.00012975,2]
[346986909,1735454298388,-180.73280872,0.00012975,2]
[346986910,1735454298410,-500.0,0.00012975,2]
[346986911,1735454298433,-500.0,0.00012975,2]
[346986912,1735454298456,-586.18443852,0.00012975,2]
[346986913,1735454298479,-500.0,0.00012975,2]
[346986914,1735454298501,-500.0,0.00012975,2]
[346986915,1735454298523,-500.0,0.00012975,2]
[346986916,1735454298546,-500.0,0.00012975,2]
[346986917,1735454298570,-500.0,0.00012975,2]
[346986918,1735454298594,-500.0,0.00012975,2]
[346986919,1735454298620,-2971.85,0.00012975,2]
[346986920,1735454298643,-500.0,0.00012975,2]
[346986921,1735454298667,-693.97,0.00012975,2]
[346986922,1735454298689,-500.0,0.00012975,2]
[346986923,1735454298719,-500.0,0.00012975,2]
[346986924,1735454298743,-500.0,0.00012975,2]
[346986925,1735454298765,-500.0,0.00012975,2]
[346986926,1735454298790,-500.0,0.00012975,2]
[346986927,1735454298814,-500.0,0.00012975,2]
[346986928,1735454298837,-500.0,0.00012975,2]
[346986929,1735454298861,-500.0,0.00012975,2]
[346986930,1735454298883,-500.0,0.00012975,2]
[346986931,1735454298906,-421.4814391,0.00012975,2]
[346986932,1735454298929,-500.0,0.00012975,2]
[346986933,1735454298953,-812.69,0.00012975,2]
[346986934,1735454299212,-500.0,0.00012975,2]
[346986935,1735454299237,-500.0,0.00012975,2]
[346986936,1735454299260,-890.18,0.00012975,2]
[346986937,1735454299283,-500.0,0.00012975,2]
[346986938,1735454299307,-1314.48,0.00012975,2]
[346986939,1735454299331,-500.0,0.00012975,2]
[346986940,1735454299353,-736.63,0.00012975,2]
[346986941,1735454299375,-500.0,0.00012975,2]
[346986942,1735454299396,-500.0,0.00012975,2]
[346986943,1735454299418,-500.0,0.00012975,2]
[346986944,1735454299440,-805.65,0.00012975,2]
[346986945,1735454299462,-500.0,0.00012975,2]
[346986946,1735454299485,-500.0,0.00012975,2]
[346986947,1735454299508,-500.0,0.00012975,2]
[346986948,1735454299530,-500.0,0.00012975,2]
[346986949,1735454299554,-500.0,0.00012975,2]
[346986950,1735454299577,-500.0,0.00012975,2]
[346986951,1735454299599,-546.96,0.00012975,2]
[346986952,1735454299625,-500.0,0.00012975,2]
[346986953,1735454299647,-500.0,0.00012975,2]
[346986954,1735454299674,-647.5557103,0.00012975,2]
[346986955,1735454299697,-500.0,0.00012975,2]
[346986956,1735454299720,-500.0,0.00012975,2]
[346986957,1735454299743,-500.0,0.00012975,2]
[346986958,1735454299764,-1460.46,0.00012975,2]
[346986959,1735454299785,-500.0,0.00012975,2]
[346986960,1735454299807,-500.0,0.00012975,2]
[346986961,1735454299829,-500.0,0.00012975,2]
[346986962,1735454299850,-500.0,0.00012975,2]
[346986963,1735454299871,-500.0,0.00012975,2]
[346986964,1735454299893,-500.0,0.00012975,2]
[346986965,1735454299914,-500.0,0.00012975,2]
[346986966,1735454299935,-500.0,0.00012975,2]
[346986967,1735454299958,-500.0,0.00012975,2]
[346986968,1735454299979,-500.0,0.00012975,2]
[346986969,1735454300000,-500.0,0.00012975,2]
[346986970,1735454300022,-500.0,0.00012975,2]
[346986971,1735454300044,-500.0,0.00012975,2]
[346986972,1735454300067,-500.0,0.00012975,2]
[346986973,1735454300091,-500.0,0.00012975,2]
[346986974,1735454300116,-500.0,0.00012975,2]
[346986975,1735454300139,-500.0,0.00012975,2]
[346986976,1735454300164,-549.03,0.00012975,2]
[346986977,1735454300187,-500.0,0.00012975,2]
[346986978,1735454300210,-500.0,0.00012975,2]
[346986979,1735454300234,-500.0,0.00012975,2]
[346986980,1735454300257,-500.0,0.00012975,2]
[346986981,1735454300279,-500.0,0.00012975,2]
[346986982,1735454300302,-674.53,0.00012975,2]
[346986983,1735454300325,-500.0,0.00012975,2]
[346986984,1735454300348,-182.52557684,0.00012975,2]
[346986985,1735454300371,-500.0,0.00012975,2]
[346986986,1735454300393,-2522.47,0.00012975,2]
[346986987,1735454300418,-521.65,0.00012975,2]
[346986988,1735454300442,-500.0,0.00012975,2]
[346986989,1735454300464,-500.0,0.00012975,2]
[346986990,1735454300485,-508.00768193,0.00012975,2]
[346986991,1735454300507,-500.0,0.00012975,2]
[346986992,1735454300529,-854.67,0.00012975,2]
[346986993,1735454300551,-500.0,0.00012975,2]
[346986994,1735454300573,-500.0,0.00012975,2]
[346986995,1735454300596,-500.0,0.00012975,2]
[346986996,1735454300623,-500.0,0.00012975,2]
[346986997,1735454300645,-888.05,0.00012975,2]
[346986998,1735454300668,-500.0,0.00012975,2]
[346986999,1735454300690,-500.0,0.00012975,2]
[346987000,1735454300713,-504.29059647,0.00012975,2]
[346987001,1735454300735,-500.0,0.00012975,2]
[346987002,1735454300758,-500.0,0.00012975,2]
[346987003,1735454300780,-500.0,0.00012975,2]
[346987004,1735454300803,-500.0,0.00012975,2]
[346987005,1735454300841,-500.0,0.00012975,2]
[346987006,1735454300880,-530.53,0.00012975,2]
[346987007,1735454300924,-500.0,0.00012975,2]
[346987008,1735454300964,-1366.36,0.00012975,2]
[346987009,1735454301004,-500.0,0.00012975,2]
[346987010,1735454301034,-500.0,0.00012975,2]
[346987011,1735454301069,-500.0,0.00012975,2]
[346987012,1735454301101,-500.0,0.00012975,2]
[346987013,1735454301135,-500.0,0.00012975,2]
[346987014,1735454301165,-500.0,0.00012975,2]
[346987015,1735454301200,-500.0,0.00012975,2]
[346987016,1735454301235,-500.0,0.00012975,2]
[346987017,1735454301267,-500.0,0.00012975,2]
[346987018,1735454301302,-500.0,0.00012975,2]
[346987019,1735454301331,-229.75734729,0.00012975,2]
[346987020,1735454301361,-500.0,0.00012975,2]
[346987021,1735454301398,-500.0,0.00012975,2]
[346987022,1735454301425,-500.0,0.00012975,2]
[346987023,1735454301463,-500.0,0.00012975,2]
[346987024,1735454301493,-500.0,0.00012975,2]
[346987025,1735454301524,-500.0,0.00012975,2]
[346987026,1735454301559,-500.0,0.00012975,2]
[346987027,1735454301593,-698.42,0.00012975,2]
[346987028,1735454301642,-500.0,0.00012975,2]
[346987029,1735454301675,-1099.35,0.00012975,2]
[346987030,1735454301709,-500.0,0.00012975,2]
[346987031,1735454301740,-500.0,0.00012975,2]
[346987032,1735454301771,-500.0,0.00012975,2]
[346987033,1735454301803,-500.0,0.00012975,2]
[346987034,1735454301833,-500.0,0.00012975,2]
[346987035,1735454301863,-500.0,0.00012975,2]
[346987036,1735454301895,-500.0,0.00012975,2]
[346987037,1735454301927,-500.0,0.00012975,2]